[Event "Late-Titled-Tuesday-Blitz-May-07-2024"]
[Site "Chess.com"]
[Date "2024.05.07"]
[Round "6"]
[White "balack95"]
[Black "sammartin99"]
[Result "1/2-1/2"]
[WhiteElo "2504"]
[BlackElo "2332"]
[TimeControl "180+1"]
[EndTime "15:08:17 PDT"]
[Termination "Game drawn by stalemate"]

1. c4 {[%clk 0:03:00.9]} 1... Nf6 {[%clk 0:02:58.1]} 2. Nc3 {[%clk 0:03:01.3]}
2... g6 {[%clk 0:02:56.7]} 3. e4 {[%clk 0:03:00.9]} 3... d6 {[%clk 0:02:43]} 4.
d3 {[%clk 0:03:00.5]} 4... Bg7 {[%clk 0:02:41.3]} 5. g3 {[%clk 0:03:00.9]} 5...
c5 {[%clk 0:02:35.6]} 6. Bg2 {[%clk 0:03:00]} 6... O-O {[%clk 0:02:28.6]} 7.
Nge2 {[%clk 0:03:00.5]} 7... Nc6 {[%clk 0:02:25.8]} 8. O-O {[%clk 0:03:00.5]}
8... e5 {[%clk 0:02:20.5]} 9. h3 {[%clk 0:02:59.6]} 9... Be6 {[%clk 0:01:50]}
10. Kh2 {[%clk 0:02:58.5]} 10... Qd7 {[%clk 0:01:45]} 11. f4 {[%clk 0:02:57.7]}
11... Nh5 {[%clk 0:01:30.1]} 12. f5 {[%clk 0:02:10.4]} 12... gxf5 {[%clk
0:01:28.1]} 13. Ng1 {[%clk 0:02:11]} 13... Nf6 {[%clk 0:01:14.7]} 14. exf5
{[%clk 0:02:10.7]} 14... Bxf5 {[%clk 0:01:15.1]} 15. Bg5 {[%clk 0:02:09.2]}
15... Ne8 {[%clk 0:01:05]} 16. Nd5 {[%clk 0:02:07.3]} 16... f6 {[%clk
0:00:56.1]} 17. Be3 {[%clk 0:02:05.5]} 17... Bg6 {[%clk 0:00:48.1]} 18. Nf3
{[%clk 0:01:58.2]} 18... Nc7 {[%clk 0:00:34.1]} 19. Nh4 {[%clk 0:01:57.2]} 19...
Nxd5 {[%clk 0:00:26.6]} 20. Bxd5+ {[%clk 0:01:58.1]} 20... Bf7 {[%clk 0:00:24]}
21. Qf3 {[%clk 0:01:46.5]} 21... Ne7 {[%clk 0:00:20.4]} 22. Bxf7+ {[%clk
0:01:39.2]} 22... Rxf7 {[%clk 0:00:21.3]} 23. g4 {[%clk 0:01:38.7]} 23... d5
{[%clk 0:00:21.2]} 24. Bxc5 {[%clk 0:01:36.1]} 24... d4 {[%clk 0:00:14.2]} 25.
Bxe7 {[%clk 0:01:35.9]} 25... Qxe7 {[%clk 0:00:14.2]} 26. Nf5 {[%clk 0:01:36.2]}
26... Qb4 {[%clk 0:00:14.3]} 27. Rf2 {[%clk 0:01:35.3]} 27... Raf8 {[%clk
0:00:12.5]} 28. Raf1 {[%clk 0:01:32.7]} 28... b5 {[%clk 0:00:12.6]} 29. b3
{[%clk 0:01:31.3]} 29... bxc4 {[%clk 0:00:12.3]} 30. dxc4 {[%clk 0:01:31.3]}
30... a5 {[%clk 0:00:11.9]} 31. Qd5 {[%clk 0:01:25.6]} 31... a4 {[%clk
0:00:09.8]} 32. g5 {[%clk 0:01:10.7]} 32... axb3 {[%clk 0:00:08.2]} 33. axb3
{[%clk 0:01:11.6]} 33... Kh8 {[%clk 0:00:06.1]} 34. Nd6 {[%clk 0:01:05.2]} 34...
Rd7 {[%clk 0:00:05.1]} 35. gxf6 {[%clk 0:01:05.7]} 35... Bh6 {[%clk 0:00:01.8]}
36. Qxe5 {[%clk 0:01:03.4]} 36... Qxd6 {[%clk 0:00:01.3]} 37. Qxd6 {[%clk
0:01:02.2]} 37... Rxd6 {[%clk 0:00:02.2]} 38. b4 {[%clk 0:01:02.8]} 38... Rd7
{[%clk 0:00:02.4]} 39. c5 {[%clk 0:01:01.2]} 39... d3 {[%clk 0:00:02.8]} 40. b5
{[%clk 0:01:00.1]} 40... d2 {[%clk 0:00:02.6]} 41. Rd1 {[%clk 0:01:00.7]} 41...
Rd5 {[%clk 0:00:02.6]} 42. f7 {[%clk 0:00:54.1]} 42... Kg7 {[%clk 0:00:02.3]}
43. Rf6 {[%clk 0:00:55]} 43... Rxf7 {[%clk 0:00:02.5]} 44. Rc6 {[%clk
0:00:51.6]} 44... Be3 {[%clk 0:00:01.6]} 45. b6 {[%clk 0:00:51.1]} 45... Rf8
{[%clk 0:00:01.1]} 46. Rc7+ {[%clk 0:00:51.1]} 46... Rf7 {[%clk 0:00:01.3]} 47.
Rxf7+ {[%clk 0:00:43.7]} 47... Kxf7 {[%clk 0:00:02.2]} 48. b7 {[%clk 0:00:44.6]}
48... Bf4+ {[%clk 0:00:02.5]} 49. Kg2 {[%clk 0:00:44.1]} 49... Bb8 {[%clk
0:00:03.2]} 50. c6 {[%clk 0:00:43.6]} 50... Rc5 {[%clk 0:00:02.9]} 51. Rxd2
{[%clk 0:00:44.2]} 51... Rxc6 {[%clk 0:00:03.2]} 52. Rd7+ {[%clk 0:00:44.3]}
52... Ke6 {[%clk 0:00:02.8]} 53. Rd8 {[%clk 0:00:42.3]} 53... Rc2+ {[%clk
0:00:02.3]} 54. Kf3 {[%clk 0:00:42.2]} 54... Be5 {[%clk 0:00:02.2]} 55. b8=Q
{[%clk 0:00:41.9]} 55... Bxb8 {[%clk 0:00:02.1]} 56. Rxb8 {[%clk 0:00:42.8]}
56... Kf6 {[%clk 0:00:02]} 57. Kg4 {[%clk 0:00:42.3]} 57... Kg6 {[%clk
0:00:01.9]} 58. Rb6+ {[%clk 0:00:42.9]} 58... Kg7 {[%clk 0:00:02.4]} 59. h4
{[%clk 0:00:43.2]} 59... Rc4+ {[%clk 0:00:02.5]} 60. Kg5 {[%clk 0:00:43]} 60...
Rc5+ {[%clk 0:00:03]} 61. Kf4 {[%clk 0:00:43.3]} 61... Rc4+ {[%clk 0:00:03.5]}
62. Kg3 {[%clk 0:00:44]} 62... Rc3+ {[%clk 0:00:03.8]} 63. Kf2 {[%clk
0:00:44.5]} 63... Rc2+ {[%clk 0:00:04.2]} 64. Ke3 {[%clk 0:00:43.7]} 64... Rh2
{[%clk 0:00:03.7]} 65. Rb4 {[%clk 0:00:43.2]} 65... Kh6 {[%clk 0:00:03.9]} 66.
Kf3 {[%clk 0:00:43.7]} 66... Rh1 {[%clk 0:00:03.1]} 67. Kg3 {[%clk 0:00:44.6]}
67... Rc1 {[%clk 0:00:03]} 68. Kg4 {[%clk 0:00:44.1]} 68... Rc6 {[%clk
0:00:03.6]} 69. Rb5 {[%clk 0:00:43.7]} 69... Rc4+ {[%clk 0:00:03.6]} 70. Kg3
{[%clk 0:00:43.5]} 70... Ra4 {[%clk 0:00:04]} 71. Rb3 {[%clk 0:00:42.9]} 71...
Rc4 {[%clk 0:00:03]} 72. Rd3 {[%clk 0:00:43]} 72... Ra4 {[%clk 0:00:02.2]} 73.
Kh3 {[%clk 0:00:43.6]} 73... Rb4 {[%clk 0:00:02.4]} 74. Rd5 {[%clk 0:00:43.5]}
74... Ra4 {[%clk 0:00:02.5]} 75. Rc5 {[%clk 0:00:43]} 75... Rb4 {[%clk
0:00:02.8]} 76. Rc3 {[%clk 0:00:42.8]} 76... Ra4 {[%clk 0:00:03.2]} 77. Rb3
{[%clk 0:00:43.2]} 77... Rd4 {[%clk 0:00:03.5]} 78. Kg3 {[%clk 0:00:44.1]} 78...
Rc4 {[%clk 0:00:03.8]} 79. Rb6+ {[%clk 0:00:44.5]} 79... Kh5 {[%clk 0:00:03.6]}
80. Rb5+ {[%clk 0:00:45.1]} 80... Kh6 {[%clk 0:00:04.2]} 81. Rg5 {[%clk
0:00:45.9]} 81... Rc3+ {[%clk 0:00:04]} 82. Kg2 {[%clk 0:00:46.2]} 82... Rc4
{[%clk 0:00:04.6]} 83. Kh3 {[%clk 0:00:46.1]} 83... Rc3+ {[%clk 0:00:05]} 84.
Kh2 {[%clk 0:00:44.6]} 84... Rc4 {[%clk 0:00:05.9]} 85. Kh3 {[%clk 0:00:44.5]}
85... Rc3+ {[%clk 0:00:06.3]} 86. Rg3 {[%clk 0:00:45.4]} 86... Rxg3+ {[%clk
0:00:05.6]} 87. Kxg3 {[%clk 0:00:46.3]} 87... Kh5 {[%clk 0:00:05.9]} 88. Kh3
{[%clk 0:00:47.2]} 88... Kg6 {[%clk 0:00:06.5]} 89. Kg4 {[%clk 0:00:47.7]} 89...
h5+ {[%clk 0:00:06.8]} 90. Kf4 {[%clk 0:00:48.3]} 90... Kf6 {[%clk 0:00:07.3]}
91. Ke4 {[%clk 0:00:48.6]} 91... Ke6 {[%clk 0:00:07.3]} 92. Kf4 {[%clk
0:00:49.2]} 92... Kf6 {[%clk 0:00:07.8]} 93. Kf3 {[%clk 0:00:46.8]} 93... Kf5
{[%clk 0:00:08.1]} 94. Kg3 {[%clk 0:00:47.3]} 94... Ke4 {[%clk 0:00:08.3]} 95.
Kh3 {[%clk 0:00:47.4]} 95... Kf4 {[%clk 0:00:08.9]} 96. Kh2 {[%clk 0:00:47.8]}
96... Kg4 {[%clk 0:00:09.6]} 97. Kg2 {[%clk 0:00:48.7]} 97... Kxh4 {[%clk
0:00:10.2]} 98. Kh2 {[%clk 0:00:49.6]} 98... Kg4 {[%clk 0:00:10.8]} 99. Kh1
{[%clk 0:00:50.5]} 99... h4 {[%clk 0:00:11.3]} 100. Kg1 {[%clk 0:00:51.4]}
100... h3 {[%clk 0:00:11.8]} 101. Kh1 {[%clk 0:00:52.3]} 101... Kg3 {[%clk
0:00:12.4]} 102. Kg1 {[%clk 0:00:53.2]} 102... h2+ {[%clk 0:00:13]} 103. Kh1
{[%clk 0:00:54.1]} 103... Kh3 {[%clk 0:00:13.7]} 1/2-1/2

[Event "Late-Titled-Tuesday-Blitz-May-07-2024"]
[Site "Chess.com"]
[Date "2024.05.07"]
[Round "6"]
[White "CarlosjPineror"]
[Black "Byniolus"]
[Result "0-1"]
[WhiteElo "2651"]
[BlackElo "2833"]
[TimeControl "180+1"]
[EndTime "15:08:26 PDT"]
[Termination "Byniolus won by resignation"]

1. e4 {[%clk 0:03:00.9]} 1... d6 {[%clk 0:03:00.2]} 2. d4 {[%clk 0:03:00]} 2...
Nf6 {[%clk 0:03:01.1]} 3. Nc3 {[%clk 0:03:00]} 3... c6 {[%clk 0:03:01.1]} 4. a4
{[%clk 0:02:59.4]} 4... a5 {[%clk 0:03:00.3]} 5. h3 {[%clk 0:02:58.9]} 5... Nbd7
{[%clk 0:02:57.8]} 6. Nf3 {[%clk 0:02:59.3]} 6... e5 {[%clk 0:02:58]} 7. Bc4
{[%clk 0:02:59.7]} 7... Be7 {[%clk 0:02:58]} 8. O-O {[%clk 0:02:59.8]} 8... O-O
{[%clk 0:02:58.3]} 9. Re1 {[%clk 0:03:00.4]} 9... h6 {[%clk 0:02:57.7]} 10. dxe5
{[%clk 0:02:55.2]} 10... Nxe5 {[%clk 0:02:51.6]} 11. Nxe5 {[%clk 0:02:54.8]}
11... dxe5 {[%clk 0:02:52.5]} 12. Be3 {[%clk 0:02:54.1]} 12... Bb4 {[%clk
0:02:49]} 13. Qxd8 {[%clk 0:02:47]} 13... Rxd8 {[%clk 0:02:48.8]} 14. f3 {[%clk
0:02:47.5]} 14... Be6 {[%clk 0:02:40]} 15. Bf1 {[%clk 0:02:42.4]} 15... Nd7
{[%clk 0:02:31.7]} 16. Red1 {[%clk 0:02:42.3]} 16... Bc5 {[%clk 0:02:27.4]} 17.
Kf2 {[%clk 0:02:41.5]} 17... Kf8 {[%clk 0:02:26.4]} 18. Rd2 {[%clk 0:02:09.3]}
18... Bxe3+ {[%clk 0:02:26]} 19. Kxe3 {[%clk 0:02:09]} 19... Nc5 {[%clk
0:02:25.9]} 20. Rad1 {[%clk 0:02:08.4]} 20... Rxd2 {[%clk 0:02:26.1]} 21. Rxd2
{[%clk 0:02:09.1]} 21... Ke7 {[%clk 0:02:26]} 22. b3 {[%clk 0:02:03.8]} 22... g6
{[%clk 0:02:21]} 23. g4 {[%clk 0:02:02.6]} 23... Rh8 {[%clk 0:02:11.2]} 24. h4
{[%clk 0:02:01.3]} 24... f6 {[%clk 0:02:06.2]} 25. Rh2 {[%clk 0:01:06.2]} 25...
h5 {[%clk 0:02:00.4]} 26. Be2 {[%clk 0:01:04.6]} 26... Bf7 {[%clk 0:01:48.2]}
27. gxh5 {[%clk 0:00:51.9]} 27... Rxh5 {[%clk 0:01:44.2]} 28. Kf2 {[%clk
0:00:43.9]} 28... Rh8 {[%clk 0:01:38]} 29. Rh1 {[%clk 0:00:40]} 29... g5 {[%clk
0:01:21]} 30. Kg3 {[%clk 0:00:38.5]} 30... Ne6 {[%clk 0:01:20.9]} 31. Rh2 {[%clk
0:00:34.9]} 31... gxh4+ {[%clk 0:00:56]} 32. Rxh4 {[%clk 0:00:35.8]} 32... Rxh4
{[%clk 0:00:56.6]} 33. Kxh4 {[%clk 0:00:35.2]} 33... Nd4 {[%clk 0:00:57.5]} 34.
Bd1 {[%clk 0:00:31.6]} 34... Kd6 {[%clk 0:00:58.1]} 35. Kg3 {[%clk 0:00:26.1]}
35... Kc5 {[%clk 0:00:57.7]} 36. Kf2 {[%clk 0:00:22.6]} 36... Kb4 {[%clk
0:00:54.8]} 37. Nb1 {[%clk 0:00:23.2]} 37... Kc5 {[%clk 0:00:45.2]} 38. Ke3
{[%clk 0:00:19.2]} 38... b5 {[%clk 0:00:45.1]} 39. Nc3 {[%clk 0:00:19.3]} 39...
Bh5 {[%clk 0:00:28.2]} 40. Na2 {[%clk 0:00:14.4]} 40... bxa4 {[%clk 0:00:26.3]}
41. bxa4 {[%clk 0:00:15.3]} 41... Bf7 {[%clk 0:00:23.3]} 42. Nc3 {[%clk
0:00:13.6]} 42... Kb4 {[%clk 0:00:20.1]} 43. Nb1 {[%clk 0:00:13.3]} 43... Kxa4
{[%clk 0:00:19.5]} 44. c3+ {[%clk 0:00:13.7]} 44... Nb3 {[%clk 0:00:18]} 45. Kd3
{[%clk 0:00:06]} 45... Kb5 {[%clk 0:00:13.8]} 46. Bxb3 {[%clk 0:00:06.1]} 46...
Bxb3 {[%clk 0:00:13.4]} 47. Nd2 {[%clk 0:00:07]} 47... a4 {[%clk 0:00:10.4]} 48.
Nb1 {[%clk 0:00:05.9]} 48... Kc5 {[%clk 0:00:08.9]} 49. Na3 {[%clk 0:00:05.6]}
49... Bf7 {[%clk 0:00:08.2]} 50. Ke3 {[%clk 0:00:05.4]} 50... Bh5 {[%clk
0:00:05.6]} 51. Kf2 {[%clk 0:00:04.3]} 51... Kd6 {[%clk 0:00:02.9]} 52. Ke3
{[%clk 0:00:04.9]} 52... Bg6 {[%clk 0:00:03.2]} 53. f4 {[%clk 0:00:05.2]} 53...
Kc5 {[%clk 0:00:02.5]} 54. f5 {[%clk 0:00:04.3]} 54... Bh5 {[%clk 0:00:02.8]}
55. Kd3 {[%clk 0:00:04.4]} 55... Bf7 {[%clk 0:00:03.2]} 56. Ke3 {[%clk
0:00:04.8]} 56... Bb3 {[%clk 0:00:03.2]} 57. Kd3 {[%clk 0:00:05.1]} 57... Kd6
{[%clk 0:00:03.3]} 58. Ke3 {[%clk 0:00:05.6]} 58... Ke7 {[%clk 0:00:03.8]} 59.
Kf3 {[%clk 0:00:05.2]} 59... Kf7 {[%clk 0:00:04.1]} 60. Kg4 {[%clk 0:00:02.5]}
60... Kg7 {[%clk 0:00:04.6]} 61. Kh4 {[%clk 0:00:02.9]} 61... Kh6 {[%clk
0:00:04.9]} 62. Kg4 {[%clk 0:00:03.3]} 62... Bd1+ {[%clk 0:00:05]} 63. Kg3
{[%clk 0:00:02.9]} 63... Kg5 {[%clk 0:00:05.8]} 64. Nc4 {[%clk 0:00:02.5]} 64...
Bb3 {[%clk 0:00:06]} 65. Na3 {[%clk 0:00:02.7]} 65... Ba2 {[%clk 0:00:05]} 66.
Kf3 {[%clk 0:00:03.1]} 66... Bf7 {[%clk 0:00:03.5]} 67. Ke3 {[%clk 0:00:04]}
67... Kg4 {[%clk 0:00:03.3]} 68. Nc2 {[%clk 0:00:04.3]} 68... Kg3 {[%clk
0:00:03.2]} 69. Na3 {[%clk 0:00:04.1]} 69... Bb3 {[%clk 0:00:03.2]} 70. c4
{[%clk 0:00:03]} 70... c5 {[%clk 0:00:02.6]} 71. Kd3 {[%clk 0:00:03.3]} 71...
Kf3 {[%clk 0:00:02.8]} 72. Nb5 {[%clk 0:00:03.6]} 72... Kf4 {[%clk 0:00:02.6]}
73. Na3 {[%clk 0:00:03.1]} 73... Ba2 {[%clk 0:00:02.2]} 74. Nb5 {[%clk
0:00:01.7]} 74... Bb1+ {[%clk 0:00:02.2]} 75. Kc3 {[%clk 0:00:02.3]} 75... Bxe4
{[%clk 0:00:02.6]} 76. Nd6 {[%clk 0:00:02.9]} 76... Bxf5 {[%clk 0:00:02.7]} 77.
Nb7 {[%clk 0:00:03.2]} 77... e4 {[%clk 0:00:02.3]} 78. Nxc5 {[%clk 0:00:03.8]}
78... e3 {[%clk 0:00:03.2]} 79. Nxa4 {[%clk 0:00:03.2]} 79... Kf3 {[%clk
0:00:02.7]} 80. Nb2 {[%clk 0:00:03.7]} 80... e2 {[%clk 0:00:02.8]} 81. Kd2
{[%clk 0:00:03.8]} 81... Kf2 {[%clk 0:00:03]} 0-1

[Event "Late-Titled-Tuesday-Blitz-May-07-2024"]
[Site "Chess.com"]
[Date "2024.05.07"]
[Round "6"]
[White "DeTimmerman"]
[Black "Albertu"]
[Result "1-0"]
[WhiteElo "2761"]
[BlackElo "2549"]
[TimeControl "180+1"]
[EndTime "15:08:26 PDT"]
[Termination "DeTimmerman won on time"]

1. b4 {[%clk 0:02:54]} 1... e5 {[%clk 0:02:58]} 2. Bb2 {[%clk 0:02:51.3]} 2...
e4 {[%clk 0:02:50.3]} 3. e3 {[%clk 0:02:50.4]} 3... Nf6 {[%clk 0:02:48.6]} 4. a3
{[%clk 0:02:50.3]} 4... a5 {[%clk 0:02:44.8]} 5. b5 {[%clk 0:02:45.8]} 5... d5
{[%clk 0:02:43.4]} 6. Ne2 {[%clk 0:02:45]} 6... Be7 {[%clk 0:02:42.3]} 7. Nd4
{[%clk 0:02:33.2]} 7... O-O {[%clk 0:02:42.1]} 8. c4 {[%clk 0:02:32.3]} 8...
dxc4 {[%clk 0:02:38.2]} 9. Bxc4 {[%clk 0:02:33.2]} 9... Nbd7 {[%clk 0:02:38.5]}
10. h3 {[%clk 0:02:31.1]} 10... Nc5 {[%clk 0:02:31.9]} 11. Nc3 {[%clk
0:02:27.8]} 11... a4 {[%clk 0:02:27.3]} 12. O-O {[%clk 0:02:13.1]} 12... Bd6
{[%clk 0:02:12.3]} 13. f4 {[%clk 0:02:12.8]} 13... Qe7 {[%clk 0:01:27.9]} 14.
Qc2 {[%clk 0:01:56.1]} 14... Bd7 {[%clk 0:01:01.3]} 15. Rae1 {[%clk 0:01:53.9]}
15... c6 {[%clk 0:01:00.4]} 16. bxc6 {[%clk 0:01:47.5]} 16... bxc6 {[%clk
0:01:01.3]} 17. Rb1 {[%clk 0:01:48.1]} 17... Nh5 {[%clk 0:00:33]} 18. Nce2
{[%clk 0:01:46]} 18... Qh4 {[%clk 0:00:25.3]} 19. Bc3 {[%clk 0:01:46.4]} 19...
Ng3 {[%clk 0:00:13]} 20. Rf2 {[%clk 0:01:41.3]} 20... Nxe2+ {[%clk 0:00:10.4]}
21. Nxe2 {[%clk 0:01:41.2]} 21... Rab8 {[%clk 0:00:09.8]} 22. Bb4 {[%clk
0:01:40]} 22... Qe7 {[%clk 0:00:08.8]} 23. Rbf1 {[%clk 0:01:30.4]} 23... Nd3
{[%clk 0:00:08.6]} 24. Bxd3 {[%clk 0:01:16.6]} 24... exd3 {[%clk 0:00:08.2]} 25.
Qxd3 {[%clk 0:01:17.5]} 25... Bxb4 {[%clk 0:00:08.6]} 26. axb4 {[%clk
0:01:17.3]} 26... Rxb4 {[%clk 0:00:09.5]} 27. Ra1 {[%clk 0:01:09.5]} 27... Be6
{[%clk 0:00:09.4]} 28. Nd4 {[%clk 0:01:08.7]} 28... Bd5 {[%clk 0:00:06.6]} 29.
Qa6 {[%clk 0:01:05.8]} 29... c5 {[%clk 0:00:04]} 30. Nc6 {[%clk 0:01:04.1]}
30... Bxc6 {[%clk 0:00:02]} 31. Qxc6 {[%clk 0:01:05]} 31... Rfb8 {[%clk
0:00:01.1]} 32. Rxa4 {[%clk 0:01:03.3]} 32... Rb1+ {[%clk 0:00:01.7]} 33. Kh2
{[%clk 0:01:03.5]} 33... h5 {[%clk 0:00:01.9]} 34. Ra8 {[%clk 0:01:03.2]} 34...
h4 {[%clk 0:00:01.7]} 35. Rxb8+ {[%clk 0:00:55.7]} 35... Rxb8 {[%clk 0:00:02.6]}
36. Qf3 {[%clk 0:00:54.5]} 36... Rd8 {[%clk 0:00:03.5]} 37. Qg4 {[%clk
0:00:54.6]} 37... Qf6 {[%clk 0:00:03.7]} 38. Kg1 {[%clk 0:00:49.9]} 38... Rd3
{[%clk 0:00:03.8]} 39. Re2 {[%clk 0:00:43.6]} 39... g6 {[%clk 0:00:02.8]} 40.
Kf2 {[%clk 0:00:42.3]} 40... Kg7 {[%clk 0:00:03.1]} 41. Qf3 {[%clk 0:00:35.2]}
41... c4 {[%clk 0:00:03]} 42. Qe4 {[%clk 0:00:33.9]} 42... Qe6 {[%clk
0:00:02.1]} 43. Qxe6 {[%clk 0:00:32.7]} 43... fxe6 {[%clk 0:00:03]} 44. Kf3
{[%clk 0:00:30.9]} 44... c3 {[%clk 0:00:02.6]} 45. dxc3 {[%clk 0:00:31.8]} 45...
Rxc3 {[%clk 0:00:03.5]} 46. Kg4 {[%clk 0:00:31.3]} 46... Kf6 {[%clk 0:00:01.9]}
47. Kxh4 {[%clk 0:00:31.2]} 47... e5 {[%clk 0:00:02.8]} 48. Kg4 {[%clk
0:00:30.6]} 48... Rc4 {[%clk 0:00:01.9]} 49. Kf3 {[%clk 0:00:29.5]} 49... e4+
{[%clk 0:00:01.3]} 50. Kg4 {[%clk 0:00:29.6]} 50... Rc3 {[%clk 0:00:01.5]} 51.
h4 {[%clk 0:00:28]} 51... Rb3 {[%clk 0:00:01.7]} 52. h5 {[%clk 0:00:27.6]} 52...
gxh5+ {[%clk 0:00:02]} 53. Kxh5 {[%clk 0:00:28.5]} 53... Rb1 {[%clk 0:00:01.5]}
54. Kg4 {[%clk 0:00:27.2]} 54... Rg1 {[%clk 0:00:01.6]} 55. Kg3 {[%clk
0:00:26.9]} 55... Kf5 {[%clk 0:00:02.5]} 56. Rd2 {[%clk 0:00:26.3]} 56... Re1
{[%clk 0:00:03.2]} 57. Rd5+ {[%clk 0:00:23.9]} 57... Kf6 {[%clk 0:00:02.9]} 58.
Kf2 {[%clk 0:00:24]} 58... Rb1 {[%clk 0:00:03.5]} 59. Re5 {[%clk 0:00:24.6]}
59... Rb2+ {[%clk 0:00:04]} 60. Kg1 {[%clk 0:00:22.4]} 60... Rb4 {[%clk
0:00:04.9]} 61. Kh2 {[%clk 0:00:22]} 61... Ra4 {[%clk 0:00:04.9]} 62. g4 {[%clk
0:00:19.6]} 62... Ra2+ {[%clk 0:00:04.9]} 63. Kg3 {[%clk 0:00:19.5]} 63... Ra4
{[%clk 0:00:05.4]} 64. g5+ {[%clk 0:00:19.7]} 64... Kg6 {[%clk 0:00:05.5]} 65.
Kg4 {[%clk 0:00:20.6]} 65... Ra1 {[%clk 0:00:05]} 66. Re6+ {[%clk 0:00:20.5]}
66... Kf7 {[%clk 0:00:05]} 67. Rxe4 {[%clk 0:00:21.4]} 67... Rg1+ {[%clk
0:00:05.6]} 68. Kf5 {[%clk 0:00:21.9]} 68... Kg7 {[%clk 0:00:05.6]} 69. Re7+
{[%clk 0:00:21.8]} 69... Kf8 {[%clk 0:00:06]} 70. Kf6 {[%clk 0:00:21.9]} 70...
Ra1 {[%clk 0:00:06.1]} 71. e4 {[%clk 0:00:21.5]} 71... Ra6+ {[%clk 0:00:06.6]}
72. Re6 {[%clk 0:00:22]} 72... Ra7 {[%clk 0:00:07]} 73. g6 {[%clk 0:00:21.7]}
73... Rf7+ {[%clk 0:00:06.6]} 74. Kg5 {[%clk 0:00:22.4]} 74... Ra7 {[%clk
0:00:04.3]} 75. f5 {[%clk 0:00:22.7]} 75... Kg7 {[%clk 0:00:03.7]} 76. Re7+
{[%clk 0:00:21.9]} 76... Rxe7 {[%clk 0:00:02.6]} 77. f6+ {[%clk 0:00:22.5]}
77... Kf8 {[%clk 0:00:01.5]} 78. fxe7+ {[%clk 0:00:23.4]} 78... Kxe7 {[%clk
0:00:02.4]} 79. Kh6 {[%clk 0:00:23.6]} 1-0